Cogmind - Beta 15 @@@ ROGUE MODE // 2025.05.25 @ 15:12:05 Player: Moddy Result: Destroyed by Y-45 Defender with Heavy Assault Rifle Performance ------------- Evolutions (1) 500 Regions Visited (2) 400 Robots Destroyed (22) 110 Value Destroyed (542) 542 Prototype IDs (0) 0 Alien Tech Used (0) 0 Bonus (0) 0 TOTAL SCORE: 1552 Bonus ------- None Cogmind --------- Core Integrity 0/400 Matter 300/300 Energy 125/125 System Corruption 0% Temperature Cool (27) Movement Flying (114) Ox1 Location -9/Materials Parts ------- > --- POWER (1) -------- Light Ion Engine > --- PROPULSION (4) --- Flight Unit Flight Unit Flight Unit > --- UTILITY (2) ------ Medium Storage Unit Utility Shielding > --- WEAPON (2) ------- Flail > --- INVENTORY (10) --- Light Ion Engine Aluminum Leg Flight Unit Improved Heat Sink Medium Battery (150) Terrain Scanner Targeting Computer Utility Shielding Hardened Light Armor Plating Beam Rifle Peak State ------------ > --- POWER ------------ Improved Ion Engine > --- PROPULSION ------- Aluminum Leg Aluminum Leg Improved Hover Unit Improved Hover Unit > --- UTILITY ---------- Medium Storage Unit Utility Shielding > --- WEAPON ----------- Flail > --- INVENTORY -------- Ion Engine Aluminum Leg Improved Heat Sink Medium Battery Targeting Computer Utility Shielding Hardened Light Armor Plating [Rating: 13] Favorites ----------- Power Ion Engine Engine Ion Engine Propulsion Aluminum Leg Treads Light Treads Leg Aluminum Leg Wheel Wheel Hover Unit Improved Hover Unit Flight Unit Flight Unit Utility Utility Shielding Device Structural Scanner Storage Medium Storage Unit Processor Targeting Computer Protection Utility Shielding Weapon Assault Rifle Energy Gun Medium Laser Ballistic Gun Assault Rifle Impact Weapon Flail Build | -11 -10 -9 ------- Run | Yrd Mat Mat Slots Evolved 2 | . . 2 Power . | . . . Propulsion 2 | . . 2 Utility . | . . . Weapon . | . . . Parts Attached 34 | 6 9 19 Power 5 | 1 1 3 Engine 5 | 1 1 3 Core . | . . . Reactor . | . . . Propulsion 19 | 2 4 13 Treads 1 | . . 1 Leg 9 | . 4 5 Wheel 2 | 2 . . Hover 2 | . . 2 Flight 5 | . . 5 Utility 5 | 1 3 1 Device 1 | . 1 . Storage 2 | 1 . 1 Processor 1 | . 1 . Hackware . | . . . Protection 1 | . 1 . Artifact . | . . . Weapon 5 | 2 1 2 Energy Gun 2 | 1 . 1 Energy Cannon . | . . . Ballistic Gun 2 | 1 1 . Ballistic Cannon . | . . . Launcher . | . . . Special Weapon . | . . . Impact Weapon 1 | . . 1 Slashing Weapon . | . . . Piercing Weapon . | . . . Special Melee Weapon . | . . . Unidentified Prototypes . | . . . Parts Lost 16 | . 1 15 Power 3 | . 1 2 Propulsion 10 | . . 10 Utility . | . . . Weapon 3 | . . 3 Highest Loss Streak 5 | . 1 5 To Critical Strikes 1 | . . 1 Average Backups 6 | 2 7 7 Power . | . . . Propulsion 1 | 1 2 . Utility 3 | . 2 5 Weapon . | . . . Tool/Special . | . . . Unused Backups 12 | . 1 11 Power 1 | . . 1 Propulsion 2 | . 1 1 Utility 6 | . . 6 Weapon 3 | . . 3 Tool/Special . | . . . Average Slot Usage (%) 88 | . 93 86 Engine 11 | . 14 10 Leg 18 | . 14 19 Wheel 4 | . 11 . Hover 7 | . . 11 Flight 4 | . . 7 Device 1 | . 4 . Storage 12 | . 14 11 Processor 2 | . 6 . Protection 7 | . . 11 Energy Gun 6 | . 11 4 Ballistic Gun 7 | . 14 4 Impact Weapon 4 | . . 6 Peak Build Rating 13 | 6 7 13 Average Rating 9 | 4 6 10 On Entrance 4 | . 6 7 Naked Turns . | . . . Heaviest Build 21 | 14 15 21 Greatest Support 30 | 20 20 30 Greatest Overweight (x) 5 | . 1 5 Average Overweight (x) . | . . . Largest Inventory Capacity 10 | 8 8 10 Average Capacity 9 | 7 8 9 Most Carried 10 | 6 8 10 Average Carried 6 | 3 7 7 Final Capacity 10 | 8 8 10 Final Carried 10 | 5 4 10 Class Distribution -------------------- 83% | Mutant 10% | Scavenger-Mutant 6% | Scavenger-Sprinter Dominant Class ---------------- Mutant | -10/Materials Mutant | -9/Materials Resources | -11 -10 -9 ----------- Run | Yrd Mat Mat Matter Collected 618 | 175 118 325 Remotely . | . . . Salvage Created 640 | . 118 522 Parts 36 | . 6 30 Haulers Intercepted . | . . . Recyclers Shooed . | . . . Parts Field Recycled . | . . . Retrieved Matter . | . . . Parts Self-Destructed . | . . . Prevented . | . . . Kills | -11 -10 -9 ------- Run | Yrd Mat Mat Combat Hostiles Destroyed 17 | . 3 14 Melee 1 | . . 1 Guns 12 | . 3 9 AOE 1 | . . 1 Classes Destroyed 6 | . 1 5 Worker 2 | . . 2 Recycler 1 | . . 1 Watcher 2 | . . 2 Swarmer 6 | . . 6 Grunt 9 | . 3 6 Sentry 2 | . . 2 Best Kill Streak 7 | . 1 7 Combat Bots Only 4 | . 1 4 Max Kills in Single Turn 1 | . 1 1 Gunslinging . | . . . Exploded 1 | . . 1 Melee 1 | . . 1 Uniques/NPCs Destroyed . | . . . Combat | -11 -10 -9 -------- Run | Yrd Mat Mat Hostile Shots Fired 211 | . 41 170 Missed 63 | . 16 47 Hits 148 | . 25 123 Projectile 148 | . 25 123 Critical Strikes 7 | . 1 6 Damage Taken 1839 | . 320 1519 Core 454 | . 54 400 Absorbed by Shields . | . . . Redirected to Shielding 34 | . 6 28 Core Remaining (%) 89 | 100 78 . Volleys Fired 66 | . 22 44 Largest 2 | . 2 2 Hottest 70 | . 70 56 Shots Fired 94 | . 41 53 Gun 94 | . 41 53 Cannon . | . . . Launcher . | . . . Special . | . . . Kinetic 46 | . 22 24 Thermal 48 | . 19 29 Explosive . | . . . Electromagnetic . | . . . Robot Hit Streak 14 | . 14 8 Robot Miss Streak 3 | . 2 3 Penetration Max . | . . . Secondary Targets 1 | . . 1 Max Gunslinging Chain 1 | . . 1 Shots Hit Robots 76 | . 30 46 Core Hits 28 | . 7 21 Critical Kills . | . . . Critical Parts Destroyed 1 | . . 1 Critical Strikes 4 | . 1 3 Burn 3 | . 1 2 Smash 1 | . . 1 Melee Attacks 16 | . . 16 Impact 16 | . . 16 Slashing . | . . . Piercing . | . . . Sneak Attacks 2 | . . 2 Combat Hostiles . | . . . Follow-up Attacks . | . . . Damage Inflicted 1707 | . 380 1327 Guns 847 | . 378 469 Cannons . | . . . Explosions 324 | . . 324 Melee 499 | . . 499 Ramming 37 | . 2 35 Kinetic 397 | . 216 181 Thermal 774 | . 162 612 Explosive . | . . . Electromagnetic . | . . . Impact 499 | . . 499 Slashing . | . . . Piercing . | . . . Highest Corruption . | . . . Average Corruption . | . . . Corruption Purged . | . . . Corruption Blocked . | . . . Overload Shots . | . . . Overflow Damage 166 | . . 166 Projectiles . | . . . Explosions 15 | . . 15 Melee 151 | . . 151 Knockbacks 2 | . . 2 Impact 2 | . . 2 Kinetic . | . . . Secondary . | . . . Self-Inflicted Damage 55 | . . 55 Shots 1 | . . 1 Rammed . | . . . Targets Rammed 14 | . 1 13 Kicked 14 | . 1 13 Crushed . | . . . Highest Temperature 144 | . 144 90 Average Temperature 44 | . 57 33 Received Heat Transfer 750 | . 204 546 Siege Activations . | . . . Martial Activations . | . . . Shielding Activations . | . . . Robots Disrupted . | . . . Combat Hostiles . | . . . Robots Corrupted 5 | . . 5 Combat Hostiles 3 | . . 3 Parts Fried 5 | . . 5 Impact Corruptions 10 | . . 10 Robots Melted . | . . . Combat Hostiles . | . . . Parts Melted 1 | . . 1 Heat Transferred 1643 | . 555 1088 Parts Sabotaged . | . . . Parts Stolen . | . . . Parts Stripped . | . . . Power Chain Reactions . | . . . Alert | -11 -10 -9 ------- Run | Yrd Mat Mat Maximum Alert Level . | . . . Low Security (%) 100 | 100 100 100 Level 1 . | . . . Level 2 . | . . . Level 3 . | . . . Level 4 . | . . . Level 5 . | . . . High Security . | . . . Max Security . | . . . Peak Influence 164 | . 35 164 Initial . | . . . Average 32 | . 10 45 Influence Increases 565 | . 110 455 Destroy 0b10 Robot/C 340 | . 60 280 Destroy 0b10 Robot/NC 25 | . . 25 Destroy Leader 94 | . 20 74 Successful Hack 1 | . . 1 Disable Machine 30 | . . 30 Destroy Structure 15 | . . 15 Partial Spotted 15 | . 15 . Lose Combat Pursuer 45 | . 15 30 Influence Decreases 483 | . 110 373 Time Decay 363 | . 110 253 Lost Part 120 | . . 120 Squads Dispatched 4 | . 2 2 Investigation 2 | . 1 1 Extermination . | . . . Reinforcement 2 | . 1 1 Assault . | . . . Garrison . | . . . Intercept . | . . . Searches Triggered . | . . . Construction Impeded . | . . . Haulers Reinforced . | . . . Active Scanning Responses . | . . . Cargo Convoy Interrupts . | . . . Stealth | -11 -10 -9 --------- Run | Yrd Mat Mat Distress Signals 2 | . . 2 Communications Jammed . | . . . Distress Signals . | . . . Times Spotted 29 | . 9 20 Peak Tracking Total 6 | . 3 6 Tactical Retreats 3 | . 1 2 Traps | -11 -10 -9 ------- Run | Yrd Mat Mat Traps Triggered 2 | . 2 . Indirectly . | . . . Trap Hack Attempts . | . . . Triggered . | . . . Disarmed 4 | . . 4 Reprogrammed . | . . . Reused . | . . . Traps Extracted . | . . . Installed . | . . . Triggered . | . . . Machines | -11 -10 -9 ---------- Run | Yrd Mat Mat Machines Disabled 2 | . . 2 Max in Single Turn 1 | . . 1 Machines Repaired . | . . . Machines Dismantled . | . . . Machines Sabotaged . | . . . Overloaded Fab Kills . | . . . Hacking | -11 -10 -9 --------- Run | Yrd Mat Mat Machines Accessed 6 | . 3 3 Terminals 4 | . 3 1 Fabricators . | . . . Repair Stations . | . . . Recycling Units 1 | . . 1 Scanalyzers 1 | . . 1 Garrison Access . | . . . Total Hacks 15 | . 5 10 Successful 7 | . 1 6 Failed 8 | . 4 4 Catastrophic 2 | . 1 1 Database Lockouts . | . . . Manual . | . . . Terminals 9 | . 5 4 Fabricators . | . . . Repair Stations . | . . . Recycling Units 3 | . . 3 Scanalyzers 3 | . . 3 Garrison Access . | . . . Terminal Hacks 3 | . 1 2 Locate Traps 2 | . 1 1 Disarm Traps 1 | . . 1 Fabricator Hacks . | . . . Repair Station Hacks . | . . . Recycling Unit Hacks 2 | . . 2 Report Inventory 1 | . . 1 Retrieve Components 1 | . . 1 Scanalyzer 2 | . . 2 Insert Component 1 | . . 1 Analyze 1 | . . 1 Garrison Access Hacks . | . . . Unauthorized Hacks . | . . . Terminals . | . . . Fabricators . | . . . Repair Stations . | . . . Recycling Units . | . . . Scanalyzers . | . . . Garrison Access . | . . . Data Cores Recovered . | . . . Used . | . . . Hacking Detections 4 | . 2 2 Full Trace Events 1 | . . 1 Feedback Events . | . . . Feedback Blocked . | . . . Robot Schematics Acquired . | . . . Robots Built . | . . . Authchips . | . . . Time . | . . . Total Robot Build Rating . | . . . Part Schematics Acquired 1 | . . 1 Parts Built . | . . . Authchips . | . . . Time . | . . . Total Part Build Rating . | . . . Parts Repaired . | . . . Time . | . . . Parts Recycled . | . . . Recycled Matter . | . . . Retrieved Matter . | . . . Retrieved Components 2 | . . 2 Parts Scanalyzed 1 | . . 1 Part Schematics Acquired 1 | . . 1 Parts Damaged . | . . . Bothacking | -11 -10 -9 ------------ Run | Yrd Mat Mat Used RIF Installer . | . . . Robots Hacked . | . . . Non-combat . | . . . Combat . | . . . Robot Hacks Applied . | . . . Relay Couplers Released . | . . . Fabnet Peak Effective % . | . . . Robots Rewired . | . . . Allies Hacked . | . . . Hacks Repelled . | . . . Allies | -11 -10 -9 -------- Run | Yrd Mat Mat Total Allies . | . . . Largest Group . | . . . Highest-Rated Group . | . . . Highest-Rated Ally . | . . . Total Orders . | . . . Ally Attacks . | . . . Total Damage . | . . . Kills . | . . . Allies Corrupted . | . . . Allies Melted . | . . . Intel | -11 -10 -9 ------- Run | Yrd Mat Mat Active Infowar (turns) 139 | . 139 . Structural 139 | . 139 . Robot Analysis Total . | . . . Derelict Logs Recovered . | . . . Drone Launches . | . . . Drone Recoveries . | . . . Exploration | -11 -10 -9 ------------- Run | Yrd Mat Mat Turns Passed 1286 | 44 429 813 Spaces Moved 768 | 35 307 426 Core 3 | 3 . . Treads . | . . . Legs 439 | . 136 303 Wheels 203 | 32 171 . Hover 5 | . . 5 Flight 118 | . . 118 Fastest Speed 31 | 50 80 31 Average Speed 116 | 77 104 129 Slowest Speed 450 | 80 190 450 Overloaded Moves . | . . . Propulsion Burnouts . | . . . Robots Hopped . | . . . Potential Cave-ins 5 | . . 5 Cave-ins Triggered . | . . . Exploration Rate (%) 24 | 5 32 36 Regions Visited 2 Branch Regions . Pre-discovered Areas . | . . . Known Exits Taken . | . . . Unknown Exits Taken 2 | 1 1 . Scrap Searched . | . . . Spaces Dug . | . . . Terrain Destroyed 22 | . . 22 Melee . | . . . Projectile . | . . . AOE 22 | . . 22 Terrain Rammed . | . . . Walls Destroyed . | . . . Machines Disabled . | . . . Actions | -11 -10 -9 --------- Run | Yrd Mat Mat Total 1035 | 51 375 609 Wait 70 | . 25 45 Move 766 | 34 306 426 Hop . | . . . Pick Up 49 | 11 8 30 Fast Attach . | . . . Attach 30 | 6 6 18 Detach 1 | . . 1 Swap 10 | . 3 7 Drop 13 | . 4 9 Fire 66 | . 22 44 Melee 16 | . . 16 Ram . | . . . Kick 14 | . 1 13 Crush . | . . . Escape Stasis . | . . . Rewire . | . . . Trap . | . . . Miscellaneous . | . . . Route ------- -11/Scrapyard -10/Materials -9/Materials History --------- Turn | Location | Event 14 | -11/Scrapyard | Discovered new exit (range 15) 45 | -11/Scrapyard | Entered Materials 317 | -10/Materials | Discovered new exit (range 13) 320 | -10/Materials | Build established: Mutant 474 | -10/Materials | Entered another Materials area 474 | -9/Materials | Evolved 2 slots: Propulsion x2 666 | -9/Materials | Core integrity fell below 50% 880 | -9/Materials | Lost 3 parts (1p2n) 1190 | -9/Materials | Core integrity fell below 20% 1217 | -9/Materials | Lost 5 parts (1p3n1w) 1287 | -9/Materials | Destroyed by Y-45 Defender with Heavy Assault Rifle Last Messages --------------- Destroyed Tractor Beam. R-06 Scavenger system corrupted by crushing effect. R-06 Scavenger knocked back. R-06 Scavenger system terminally corrupted. Sml. Storage Unit fried. Dropped Aluminum Leg. Acquired Lgt. Ion Engine. Acquired Aluminum Leg. Dropped Imp. Hover Unit. Acquired Lgt. Ion Engine. Acquired 5 matter. Connecting with Terminal... >>Traps(Locate) Found 4 traps in 1 array: 4x Blade Trap Map updated. >>Traps(Disarm) Disarmed 4 Blade Traps. Flight Unit destroyed. Critical hit (Burn: +37). Map ----- +----------------------------------------------------+ | ????# ### S"" #?????????????????????????????????? | | ????# #?# "" #?????????????????????????????????? | | ????# #?#####+##?????????????????????????????????? | | ##### #?????# #??????????????????????????????????? | | ##%##????# #??????????????????????????????????? | | ! #%%*###### #??????????????????????????????????? | | ! + " [ [% #??????????????????????????????????? | | = #==[#####! #??????????????????????????????????? | | #####???#% ##?????????????????????????????????? | | #???????# #?????????????????????????????????? | | ####???????# #?????????????????????????????????? | | ???######### #?????????#???????????????????????? | | ???? ## #???????? #???????????????????????? | | ????"""" ## ##????? #????????????????????????? | | ?#?""""" # ##### ##+??????????????????????? | | ?# """"" # ?????????????????????? | | ?# """"" + ?????????????????????? | | ?# """"" # ?????????????????????? | | ?# """"" # ##/########??????????????????????? | | ?# """"" ## ## ??????????????????????????? | | ?# ## ## """ ?????????##????????????????? | | ?########### ## """ ???????## ####?????????????? | | ???????#"""# ## """??????? #?????????????? | | ??######"T"# ## ??????? #?????????????? | | ??# ###+#######! #?????????????? | | ??# @# #?????????????? | | ??# [= Y =![ #?????????????? | | ??# [= # =![ #?????????????? | | ??# [ ##+######## !![ #?????????????? | | ??# # #?? #?????????????? | | ??# # #?? #?????????????? | | ??# # #???#######?????????????? | | ??# # #???????????????????????? | | ??# # #???????????????????????? | | ??# # " #???????????????????????? | | ??# """"""" # " #???????????????????????? | | """"""" + " #???????????????????????? | | """"""" # #???????????????????????? | | """"""" ###+######???????????????????????? | | #### ??????"" #????????????????????????????????? | | ???#??????? #????????????????????????????????? | | ???????????? #????????????????????????????????? | | ??????????? ##????????????????????????????????? | | ???????????? ?????????????????????????????????? | | ??????????? #?????????????????????????????????? | | ????????????####?????????????????????????????????? | | ?????????????????????????????????????????????????? | | ?????????????????????????????????????????????????? | | ?????????????????????????????????????????????????? | | ?????????????????????????????????????????????????? | +----------------------------------------------------+ Best States ------------- Heat Dissipation 28 Energy Generation 12 Energy Capacity 265 Matter Stores 300 Matter Capacity 300 Sight Range 16 Terrain Scan Density 10 Utility Shielding 33 Evasion (%) 63 Targeting Accuracy 5 Item Schematics ----------------- Hrd. Light Armor Plating | -9/Materials | Scanalyzed Robot Schematics ------------------ None Fabricated ------------ Nothing Repaired ---------- Nothing Alien Tech Used ----------------- None Achievements -------------- None Challenges ------------ None Game ------ Seed SiegeChainWings Manual? 0 Play Time 00:15:14 Cumulative 8.3 hours Start 2025.05.25 @ 04:48:33 End 2025.05.25 @ 15:12:05 Sessions 3 Manual Loads 0 Difficulty Rogue Special Mode None Game No. 20 Rogue 20 Adventurer 0 Explorer 0 Win Type - Total 0 Types 0/0/0/0/0/0/0/0/0/0 Lore% 8 Gallery% 18 Achievement% 14 Wizard Run 0 Options --------- Layout 1 ASCII 0 Keyboard 0 Movement Mouse Keybinds 0 Fullscreen 1 Font 32/SmallcapsGlow Map View 77x35 Zoom Use 0% Tactical HUD 0 Map Filters NONE Filters NONE Steam 1 RUN: 7fd2eae4-4f3a-42dc-81e7-0e1e1cc43f40